fUST/lending_fUST_20260611
["ID","MTS","AMOUNT","RATE_DAILY","PERIOD"]
[424754658,1781127043000,-151.0,0.0002,2]
[424754663,1781127043000,-200.0,0.00020073,2]
[424754657,1781127043000,-414893.0,0.0002,2]
[424754659,1781127043000,-151.0,0.0002,2]
[424754660,1781127043000,-151.0,0.0002,2]
[424754662,1781127043000,-2000.0,0.0002,7]
[424754664,1781127043000,-10553.38832801,0.000201,2]
[424754666,1781127043000,-332.1343611,0.00020221,2]
[424754667,1781127043000,-331.48,0.00020274,2]
[424754665,1781127043000,-720.0,0.00020195,2]
[424754668,1781127043000,-10553.38832801,0.000203,2]
[424754669,1781127043000,-561.00639127,0.00020353,2]
[424754670,1781127043000,-561.00639127,0.00020389,2]
[424754672,1781127043000,-2157.48743549,0.0002039,2]
[424754675,1781127043000,-561.00639127,0.00020443,2]
[424754612,1781127043000,-1111.53,0.00019209,2]
[424754673,1781127043000,-444.90413921,0.00020408,6]
[424754674,1781127043000,-351.50021787,0.00020408,6]
[424754649,1781127043000,-860.967326,0.00019788,2]
[424754644,1781127043000,-151.0,0.000196,2]
[424754671,1781127043000,-1561.50243502,0.0002039,2]
[424754645,1781127043000,-151.0,0.000196,2]
[424754647,1781127043000,-505.90416522,0.00019702,2]
[424754613,1781127043000,-1111.73103297,0.00019209,2]
[424754614,1781127043000,-151.0,0.0001921,2]
[424754617,1781127043000,-151.0,0.0001921,2]
[424754616,1781127043000,-151.457853,0.0001921,2]
[424754619,1781127043000,-10553.38832801,0.000194,2]
[424754623,1781127043000,-10553.38832801,0.000196,2]
[424754618,1781127043000,-168.94243976,0.000194,2]
[424754621,1781127043000,-331.48,0.00019452,2]
[424754620,1781127043000,-190.34962631,0.000194,2]
[424754622,1781127043000,-300.0,0.00019589,3]
[424754624,1781127043000,-151.0,0.000196,2]
[424754628,1781127043000,-238.95872,0.000196,2]
[424754627,1781127043000,-238.95872,0.000196,2]
[424754615,1781127043000,-152.52502,0.0001921,2]
[424754625,1781127043000,-151.0,0.000196,2]
[424754641,1781127043000,-701.236944,0.000196,2]
[424754642,1781127043000,-701.236944,0.000196,2]
[424754640,1781127043000,-701.236944,0.000196,2]
[424754638,1781127043000,-207.340324,0.000196,2]
[424754639,1781127043000,-701.236944,0.000196,2]
[424754626,1781127043000,-151.0,0.000196,2]
[424754636,1781127043000,-207.340324,0.000196,2]
[424754637,1781127043000,-207.340324,0.000196,2]
[424754633,1781127043000,-151.0,0.000196,2]
[424754634,1781127043000,-281.55618,0.000196,2]
[424754632,1781127043000,-151.0,0.000196,2]
[424754630,1781127043000,-238.95872,0.000196,2]
[424754631,1781127043000,-238.95872,0.000196,2]
[424754635,1781127043000,-207.340324,0.000196,2]
[424754718,1781127044000,-180.89396502,0.00021073,2]
[424754717,1781127044000,-291.26198575,0.00021065,6]
[424754716,1781127044000,-150.0,0.00021041,2]
[424754714,1781127044000,-150.334,0.00021041,2]
[424754715,1781127044000,-150.0,0.00021041,2]
[424754708,1781127044000,-701.236944,0.000208,2]
[424754712,1781127044000,-818.784237,0.00021,2]
[424754711,1781127044000,-156.52264942,0.00020918,2]
[424754710,1781127044000,-331.48,0.00020822,2]
[424754709,1781127044000,-701.236944,0.000208,2]
[424754707,1781127044000,-701.236944,0.000208,2]
[424754713,1781127044000,-10553.38832801,0.00021,2]
[424754719,1781127044000,-331.48,0.00021096,2]
[424754725,1781127044000,-10553.38832801,0.000212,2]
[424754721,1781127044000,-1078.1967,0.000211,2]
[424754722,1781127044000,-1076.4796,0.000211,2]
[424754724,1781127044000,-561.00639127,0.00021171,2]
[424754726,1781127044000,-151.0,0.000212,4]
[424754723,1781127044000,-1000.0,0.00021126,5]
[424754727,1781127044000,-151.0,0.000212,2]
[424754728,1781127044000,-151.0,0.000212,2]
[424754729,1781127044000,-265.005531,0.000212,2]
[424754734,1781127044000,-331.48,0.00021644,2]
[424754732,1781127044000,-10553.38832801,0.000214,2]
[424754735,1781127044000,-206.704189,0.00021747,2]
[424754704,1781127044000,-207.340324,0.000208,2]
[424754731,1781127044000,-860.967326,0.00021386,2]
[424754720,1781127044000,-1187.3199,0.000211,2]
[424754706,1781127044000,-701.236944,0.000208,2]
[424754688,1781127044000,-363.44974104,0.00020686,2]
[424754700,1781127044000,-151.0,0.000208,2]
[424754733,1781127044000,-330.0,0.00021479,2]
[424754678,1781127044000,-1102.724191,0.00020548,2]
[424754676,1781127044000,-151.0,0.000205,3]
[424754677,1781127044000,-331.48,0.00020548,2]
[424754679,1781127044000,-860.967326,0.00020587,2]
[424754681,1781127044000,-151.0,0.000206,2]
[424754682,1781127044000,-151.0,0.000206,2]
[424754680,1781127044000,-10553.38832801,0.000206,2]
[424754683,1781127044000,-243.763,0.00020615,2]
[424754684,1781127044000,-2208.0,0.00020615,2]
[424754685,1781127044000,-736.92,0.00020615,2]
[424754687,1781127044000,-459.022,0.00020615,2]
[424754689,1781127044000,-287.1464927,0.00020686,2]
[424754686,1781127044000,-188.08,0.00020615,2]
[424754690,1781127044000,-561.00639127,0.00020721,2]
[424754695,1781127044000,-151.0,0.000208,2]
[424754692,1781127044000,-10553.38832801,0.000208,2]
[424754693,1781127044000,-151.0,0.000208,2]
[424754691,1781127044000,-205.589348,0.00020776,2]
[424754694,1781127044000,-151.0,0.000208,2]
[424754696,1781127044000,-238.95872,0.000208,2]
[424754698,1781127044000,-238.95872,0.000208,2]
[424754699,1781127044000,-238.95872,0.000208,2]
[424754701,1781127044000,-151.0,0.000208,2]
[424754703,1781127044000,-207.340324,0.000208,2]
[424754697,1781127044000,-238.95872,0.000208,2]
[424754702,1781127044000,-207.340324,0.000208,2]
[424754705,1781127044000,-207.340324,0.000208,2]
[424754730,1781127044000,-331.48,0.0002137,2]
[424754795,1781127044000,-397.4,0.00021917,2]
[424754739,1781127044000,-210.0,0.00021753,2]
[424754773,1781127044000,-500.63532445,0.00021917,2]
[424754771,1781127044000,-459.37393271,0.00021917,2]
[424754774,1781127044000,-500.42077715,0.00021917,2]
[424754776,1781127044000,-500.0,0.00021917,2]
[424754775,1781127044000,-646.21671608,0.00021917,2]
[424754778,1781127044000,-500.75362375,0.00021917,2]
[424754777,1781127044000,-500.80791134,0.00021917,2]
[424754780,1781127044000,-500.0,0.00021917,2]
[424754779,1781127044000,-500.0,0.00021917,2]
[424754781,1781127044000,-500.0,0.00021917,2]
[424754782,1781127044000,-500.0,0.00021917,2]
[424754783,1781127044000,-500.0,0.00021917,2]
[424754784,1781127044000,-500.0,0.00021917,2]
[424754787,1781127044000,-500.0,0.00021917,2]
[424754785,1781127044000,-500.0,0.00021917,2]
[424754786,1781127044000,-500.0,0.00021917,2]
[424754789,1781127044000,-500.84627752,0.00021917,2]
[424754788,1781127044000,-500.0,0.00021917,2]
[424754791,1781127044000,-395.7,0.00021917,2]
[424754792,1781127044000,-500.98055824,0.00021917,2]
[424754790,1781127044000,-151.0,0.00021917,2]
[424754736,1781127044000,-164.218581,0.00021747,2]
[424754798,1781127044000,-500.0,0.00021917,2]
[424754796,1781127044000,-326.86,0.00021917,2]
[424754794,1781127044000,-437.15,0.00021917,2]
[424754799,1781127044000,-500.0,0.00021917,2]
[424754797,1781127044000,-500.0,0.00021917,2]
[424754772,1781127044000,-500.0,0.00021917,2]
[424754768,1781127044000,-151.0,0.00021917,2]
[424754793,1781127044000,-500.0,0.00021917,2]
[424754769,1781127044000,-500.0,0.00021917,2]
[424754770,1781127044000,-500.0,0.00021917,2]
[424754738,1781127044000,-320.0,0.00021753,2]
[424754737,1781127044000,-500.0,0.00021753,2]
[424754740,1781127044000,-260.0,0.00021753,2]
[424754743,1781127044000,-151.0,0.000219,3]
[424754744,1781127044000,-422.99885988,0.00021908,2]
[424754742,1781127044000,-5824.65067584,0.00021874,2]
[424754745,1781127044000,-500.0,0.00021917,2]
[424754741,1781127044000,-824.0,0.00021857,2]
[424754746,1781127044000,-502.96505442,0.00021917,2]
[424754749,1781127044000,-500.69,0.00021917,2]
[424754750,1781127044000,-500.0,0.00021917,2]
[424754751,1781127044000,-345.4739061,0.00021917,2]
[424754747,1781127044000,-500.0,0.00021917,2]
[424754752,1781127044000,-500.0,0.00021917,2]
[424754748,1781127044000,-500.0,0.00021917,2]
[424754766,1781127044000,-500.69301717,0.00021917,2]
[424754765,1781127044000,-500.0,0.00021917,2]
[424754761,1781127044000,-500.0,0.00021917,2]
[424754762,1781127044000,-500.0,0.00021917,2]
[424754764,1781127044000,-500.0,0.00021917,2]
[424754756,1781127044000,-500.0,0.00021917,2]
[424754755,1781127044000,-500.0,0.00021917,2]
[424754754,1781127044000,-500.0,0.00021917,2]
[424754758,1781127044000,-500.0,0.00021917,2]
[424754753,1781127044000,-500.0,0.00021917,2]
[424754767,1781127044000,-500.0,0.00021917,2]
[424754760,1781127044000,-500.0,0.00021917,2]
[424754827,1781127045000,-500.0,0.00021917,2]
[424754824,1781127045000,-238.95872,0.00021917,2]
[424754828,1781127045000,-384.01618554,0.00021917,2]
[424754830,1781127045000,-500.0,0.00021917,2]
[424754825,1781127045000,-150.37081068,0.00021917,2]
[424754832,1781127045000,-500.0,0.00021917,2]
[424754833,1781127045000,-500.0,0.00021917,2]
[424754831,1781127045000,-500.0,0.00021917,2]
[424754836,1781127045000,-500.0,0.00021917,2]
[424754829,1781127045000,-500.0,0.00021917,2]
[424754839,1781127045000,-500.0,0.00021917,2]
[424754835,1781127045000,-500.0,0.00021917,2]
[424754838,1781127045000,-622.31248885,0.00021917,2]
[424754837,1781127045000,-500.0,0.00021917,2]
[424754840,1781127045000,-501.32591541,0.00021917,2]
[424754841,1781127045000,-500.0,0.00021917,2]
[424754842,1781127045000,-151.0,0.00021917,2]
[424754843,1781127045000,-391.91938312,0.00021917,2]
[424754845,1781127045000,-500.0,0.00021917,2]
[424754826,1781127045000,-502.17115597,0.00021917,2]
[424754844,1781127045000,-151.0,0.00021917,2]
[424754834,1781127045000,-500.0,0.00021917,2]
[424754823,1781127045000,-500.0,0.00021917,2]
[424754807,1781127045000,-151.0,0.00021917,2]
[424754821,1781127045000,-238.95872,0.00021917,2]
[424754846,1781127045000,-500.0,0.00021917,2]
[424754801,1781127045000,-500.0,0.00021917,2]
[424754800,1781127045000,-500.0,0.00021917,2]
[424754802,1781127045000,-500.0,0.00021917,2]
[424754804,1781127045000,-500.0,0.00021917,2]
[424754806,1781127045000,-151.0,0.00021917,2]
[424754805,1781127045000,-500.0,0.00021917,2]
[424754803,1781127045000,-620.20708996,0.00021917,2]
[424754808,1781127045000,-247.16815,0.00021917,2]
[424754809,1781127045000,-648.4,0.00021917,2]
[424754810,1781127045000,-500.0,0.00021917,2]
[424754811,1781127045000,-504.47318699,0.00021917,2]
[424754812,1781127045000,-500.0,0.00021917,2]
[424754814,1781127045000,-500.0,0.00021917,2]
[424754813,1781127045000,-500.0,0.00021917,2]
[424754816,1781127045000,-500.0,0.00021917,2]
[424754817,1781127045000,-155.91741083,0.00021917,2]
[424754815,1781127045000,-206.26539062,0.00021917,2]
[424754818,1781127045000,-238.95872,0.00021917,2]
[424754819,1781127045000,-238.95872,0.00021917,2]
[424754820,1781127045000,-500.0,0.00021917,2]
[424754822,1781127045000,-503.25938635,0.00021917,2]
[424754847,1781127045000,-500.0,0.00021917,2]
[424754894,1781127045000,-501.41282974,0.00021917,2]
[424754850,1781127045000,-500.0,0.00021917,2]
[424754876,1781127045000,-207.340324,0.00021917,2]
[424754878,1781127045000,-207.340324,0.00021917,2]
[424754879,1781127045000,-207.340324,0.00021917,2]
[424754877,1781127045000,-499.67515182,0.00021917,2]
[424754881,1781127045000,-500.0,0.00021917,2]
[424754880,1781127045000,-207.340314,0.00021917,2]
[424754888,1781127045000,-500.0,0.00021917,2]
[424754883,1781127045000,-701.236944,0.00021917,2]
[424754882,1781127045000,-575.9,0.00021917,2]
[424754886,1781127045000,-701.236942,0.00021917,2]
[424754889,1781127045000,-234.32,0.00021917,2]
[424754885,1781127045000,-701.236944,0.00021917,2]
[424754887,1781127045000,-500.0,0.00021917,2]
[424754891,1781127045000,-500.27949134,0.00021917,2]
[424754890,1781127045000,-500.0,0.00021917,2]
[424754893,1781127045000,-500.0,0.00021917,2]
[424754892,1781127045000,-506.15291885,0.00021917,2]
[424754897,1781127045000,-500.0,0.00021917,2]
[424754895,1781127045000,-500.0,0.00021917,2]
[424754896,1781127045000,-500.0,0.00021917,2]
[424754848,1781127045000,-502.65310394,0.00021917,2]
[424754873,1781127045000,-467.63,0.00021917,2]
[424754874,1781127045000,-236.52,0.00021917,2]
[424754884,1781127045000,-701.236944,0.00021917,2]
[424754872,1781127045000,-500.0,0.00021917,2]
[424754849,1781127045000,-500.0,0.00021917,2]
[424754875,1781127045000,-500.0,0.00021917,2]
[424754852,1781127045000,-500.0,0.00021917,2]
[424754853,1781127045000,-500.0,0.00021917,2]
[424754851,1781127045000,-503.11699805,0.00021917,2]
[424754854,1781127045000,-500.0,0.00021917,2]
[424754856,1781127045000,-500.0,0.00021917,2]
[424754857,1781127045000,-502.26056609,0.00021917,2]
[424754858,1781127045000,-501.24872044,0.00021917,2]
[424754859,1781127045000,-264.51751627,0.00021917,2]
[424754863,1781127045000,-501.69944647,0.00021917,2]
[424754855,1781127045000,-500.0,0.00021917,2]
[424754867,1781127045000,-339.18,0.00021917,2]
[424754860,1781127045000,-500.0,0.00021917,2]
[424754861,1781127045000,-500.0,0.00021917,2]
[424754864,1781127045000,-438.97,0.00021917,2]
[424754866,1781127045000,-500.0,0.00021917,2]
[424754868,1781127045000,-450.39,0.00021917,2]
[424754865,1781127045000,-502.47791829,0.00021917,2]
[424754871,1781127045000,-306.87,0.00021917,2]
[424754870,1781127045000,-500.0,0.00021917,2]
[424754869,1781127045000,-169.38,0.00021917,2]
[424754862,1781127045000,-500.0,0.00021917,2]
[424754936,1781127046000,-500.0,0.00021917,2]
[424754929,1781127046000,-500.0,0.00021917,2]
[424754940,1781127046000,-500.8192789,0.00021917,2]
[424754942,1781127046000,-500.0,0.00021917,2]
[424754933,1781127046000,-500.0,0.00021917,2]
[424754935,1781127046000,-500.0,0.00021917,2]
[424754931,1781127046000,-500.0,0.00021917,2]
[424754934,1781127046000,-500.0,0.00021917,2]
[424754944,1781127046000,-500.0,0.00021917,2]
[424754932,1781127046000,-500.0,0.00021917,2]
[424754945,1781127046000,-500.0,0.00021917,2]
[424754938,1781127046000,-500.0,0.00021917,2]
[424754946,1781127046000,-529.31,0.00021917,2]
[424754961,1781127046000,-500.0,0.00021917,2]
[424754949,1781127046000,-500.0,0.00021917,2]
[424754948,1781127046000,-500.0,0.00021917,2]
[424754951,1781127046000,-3348.17,0.00021917,2]
[424754952,1781127046000,-501.31428571,0.00021917,2]
[424754954,1781127046000,-500.0,0.00021917,2]
[424754957,1781127046000,-500.0,0.00021917,2]
[424754953,1781127046000,-500.0,0.00021917,2]
[424754956,1781127046000,-400.84886318,0.00021917,2]
[424754959,1781127046000,-500.77863533,0.00021917,2]
[424754962,1781127046000,-542.83,0.00021917,2]
[424754964,1781127046000,-168.14258134,0.00021917,2]
[424754965,1781127046000,-500.0,0.00021917,2]
[424754930,1781127046000,-500.0,0.00021917,2]
[424754947,1781127046000,-500.0,0.00021917,2]
[424754928,1781127046000,-501.64347717,0.00021917,2]
[424754903,1781127046000,-500.0,0.00021917,2]
[424754925,1781127046000,-500.0,0.00021917,2]
[424754898,1781127046000,-500.0,0.00021917,2]
[424754899,1781127046000,-500.0,0.00021917,2]
[424754902,1781127046000,-502.51578095,0.00021917,2]
[424754901,1781127046000,-501.60967005,0.00021917,2]
[424754900,1781127046000,-555.4,0.00021917,2]
[424754905,1781127046000,-500.0,0.00021917,2]
[424754968,1781127046000,-268.586266,0.00021918,2]
[424754904,1781127046000,-500.0,0.00021917,2]
[424754906,1781127046000,-500.0,0.00021917,2]
[424754908,1781127046000,-500.0,0.00021917,2]
[424754907,1781127046000,-501.66423692,0.00021917,2]
[424754909,1781127046000,-537.5,0.00021917,2]
[424754911,1781127046000,-500.0,0.00021917,2]
[424754926,1781127046000,-501.43908268,0.00021917,2]
[424754910,1781127046000,-500.0,0.00021917,2]
[424754913,1781127046000,-500.0,0.00021917,2]
[424754915,1781127046000,-500.0,0.00021917,2]
[424754912,1781127046000,-513.67,0.00021917,2]
[424754917,1781127046000,-500.0,0.00021917,2]
[424754916,1781127046000,-500.0,0.00021917,2]
[424754918,1781127046000,-500.0,0.00021917,2]
[424754919,1781127046000,-501.26977332,0.00021917,2]
[424754921,1781127046000,-500.0,0.00021917,2]
[424754920,1781127046000,-500.0,0.00021917,2]
[424754922,1781127046000,-500.0,0.00021917,2]
[424754923,1781127046000,-500.53534566,0.00021917,2]
[424754924,1781127046000,-500.0,0.00021917,2]
[424754927,1781127046000,-502.24248743,0.00021917,2]
[424754914,1781127046000,-500.0,0.00021917,2]
[424754966,1781127046000,-501.98647962,0.00021917,2]
[424754955,1781127046000,-500.0,0.00021917,2]
[424754972,1781127046000,-252.152797,0.00021918,2]
[424755006,1781127046000,-500.0,0.00022191,2]
[424755007,1781127046000,-500.0,0.00022191,2]
[424755008,1781127046000,-151.0,0.00022191,2]
[424755010,1781127046000,-500.28,0.00022191,2]
[424755009,1781127046000,-500.0,0.00022191,2]
[424755012,1781127046000,-500.0,0.00022191,2]
[424755014,1781127046000,-177.88,0.00022191,2]
[424755011,1781127046000,-503.59,0.00022191,2]
[424755015,1781127046000,-500.0,0.00022191,2]
[424755013,1781127046000,-523.43797605,0.00022191,2]
[424755016,1781127046000,-336.44,0.00022191,2]
[424755017,1781127046000,-369.56,0.00022191,2]
[424755018,1781127046000,-188.32,0.00022191,2]
[424755004,1781127046000,-500.0,0.00022191,2]
[424755020,1781127046000,-574.47,0.00022191,2]
[424755029,1781127046000,-444.59564573,0.00022191,2]
[424755028,1781127046000,-500.0,0.00022191,2]
[424755025,1781127046000,-502.40695595,0.00022191,2]
[424755023,1781127046000,-500.0,0.00022191,2]
[424755022,1781127046000,-160.89,0.00022191,2]
[424755024,1781127046000,-500.0,0.00022191,2]
[424755026,1781127046000,-500.86,0.00022191,2]
[424755027,1781127046000,-500.0,0.00022191,2]
[424755032,1781127046000,-500.0,0.00022191,2]
[424755030,1781127046000,-501.05124057,0.00022191,2]
[424755031,1781127046000,-460.50075272,0.00022191,2]
[424755033,1781127046000,-500.0,0.00022191,2]
[424754970,1781127046000,-252.152797,0.00021918,2]
[424755021,1781127046000,-500.0,0.00022191,2]
[424755005,1781127046000,-500.0,0.00022191,2]
[424755019,1781127046000,-183.05817674,0.00022191,2]
[424755000,1781127046000,-500.0,0.00022191,2]
[424754971,1781127046000,-252.152797,0.00021918,2]
[424755003,1781127046000,-500.0,0.00022191,2]
[424754974,1781127046000,-252.152797,0.00021918,2]
[424754975,1781127046000,-252.152797,0.00021918,2]
[424754976,1781127046000,-252.152797,0.00021918,2]
[424754979,1781127046000,-252.152797,0.00021918,2]
[424754977,1781127046000,-252.152797,0.00021918,2]
[424754978,1781127046000,-252.152797,0.00021918,2]
[424754980,1781127046000,-252.152797,0.00021918,2]
[424754984,1781127046000,-252.152797,0.00021918,2]
[424754986,1781127046000,-252.152797,0.00021918,2]
[424754981,1781127046000,-252.152797,0.00021918,2]
[424754988,1781127046000,-252.152797,0.00021918,2]
[424754983,1781127046000,-252.152797,0.00021918,2]
[424754985,1781127046000,-252.152797,0.00021918,2]
[424754982,1781127046000,-252.152797,0.00021918,2]
[424755001,1781127046000,-621.08,0.00022191,2]
[424754987,1781127046000,-252.152797,0.00021918,2]
[424754998,1781127046000,-502.9969414,0.00022191,2]
[424754997,1781127046000,-294.64,0.00022191,2]
[424754994,1781127046000,-825.0,0.00022151,2]
[424754995,1781127046000,-860.967326,0.00022186,2]
[424754996,1781127046000,-213.471506,0.00022186,2]
[424754999,1781127046000,-219.13,0.00022191,2]
[424754990,1781127046000,-252.152788,0.00021918,2]
[424754991,1781127046000,-331.48,0.00021918,2]
[424754992,1781127046000,-196.0,0.00022,2]
[424754989,1781127046000,-252.152797,0.00021918,2]
[424754993,1781127046000,-796.0,0.000221,2]
[424755079,1781127047000,-500.0,0.00022191,2]
[424755077,1781127047000,-500.0,0.00022191,2]
[424755070,1781127047000,-500.0,0.00022191,2]
[424755075,1781127047000,-282.71,0.00022191,2]
[424755069,1781127047000,-500.0,0.00022191,2]
[424755072,1781127047000,-500.0,0.00022191,2]
[424755074,1781127047000,-500.0,0.00022191,2]
[424755071,1781127047000,-500.0,0.00022191,2]
[424755076,1781127047000,-501.97670377,0.00022191,2]
[424755073,1781127047000,-315.28,0.00022191,2]
[424755067,1781127047000,-500.0,0.00022191,2]
[424755080,1781127047000,-500.0,0.00022191,2]
[424755068,1781127047000,-501.62008338,0.00022191,2]
[424755078,1781127047000,-636.31710374,0.00022191,2]
[424755094,1781127047000,-500.0,0.00022191,2]
[424755086,1781127047000,-500.0,0.00022191,2]
[424755081,1781127047000,-500.0,0.00022191,2]
[424755087,1781127047000,-529.31,0.00022191,2]
[424755088,1781127047000,-500.0,0.00022191,2]
[424755084,1781127047000,-380.85,0.00022191,2]
[424755083,1781127047000,-221.55912985,0.00022191,2]
[424755085,1781127047000,-281.39,0.00022191,2]
[424755089,1781127047000,-289.99175165,0.00022191,2]
[424755090,1781127047000,-500.0,0.00022191,2]
[424755092,1781127047000,-203.74,0.00022191,2]
[424755091,1781127047000,-3348.17,0.00022191,2]
[424755093,1781127047000,-500.0,0.00022191,2]
[424755065,1781127047000,-513.67,0.00022191,2]
[424755082,1781127047000,-500.0,0.00022191,2]
[424755066,1781127047000,-500.0,0.00022191,2]
[424755035,1781127047000,-500.0,0.00022191,2]
[424755062,1781127047000,-537.5,0.00022191,2]
[424755095,1781127047000,-500.0,0.00022191,2]
[424755036,1781127047000,-642.64,0.00022191,2]
[424755037,1781127047000,-500.0,0.00022191,2]
[424755034,1781127047000,-231.15937693,0.00022191,2]
[424755038,1781127047000,-500.0,0.00022191,2]
[424755039,1781127047000,-500.0,0.00022191,2]
[424755040,1781127047000,-500.0,0.00022191,2]
[424755041,1781127047000,-297.96015255,0.00022191,2]
[424755042,1781127047000,-500.0,0.00022191,2]
[424755046,1781127047000,-500.0,0.00022191,2]
[424755045,1781127047000,-500.0,0.00022191,2]
[424755049,1781127047000,-503.15397399,0.00022191,2]
[424755047,1781127047000,-500.0,0.00022191,2]
[424755043,1781127047000,-259.09,0.00022191,2]
[424755044,1781127047000,-500.0,0.00022191,2]
[424755050,1781127047000,-500.0,0.00022191,2]
[424755048,1781127047000,-190.88,0.00022191,2]
[424755051,1781127047000,-500.0,0.00022191,2]
[424755054,1781127047000,-500.0,0.00022191,2]
[424755052,1781127047000,-500.0,0.00022191,2]
[424755053,1781127047000,-246.35,0.00022191,2]
[424755055,1781127047000,-500.0,0.00022191,2]
[424755058,1781127047000,-415.09,0.00022191,2]
[424755057,1781127047000,-189.09,0.00022191,2]
[424755061,1781127047000,-500.0,0.00022191,2]
[424755060,1781127047000,-500.0,0.00022191,2]
[424755059,1781127047000,-500.0,0.00022191,2]
[424755056,1781127047000,-500.0,0.00022191,2]
[424755063,1781127047000,-500.0,0.00022191,2]
[424755064,1781127047000,-500.0,0.00022191,2]
[424755096,1781127047000,-500.0,0.00022191,2]
[424755143,1781127047000,-500.0,0.00022465,2]
[424755098,1781127047000,-331.48,0.00022192,2]
[424755134,1781127047000,-500.0,0.00022465,2]
[424755138,1781127047000,-544.97,0.00022465,2]
[424755133,1781127047000,-500.0,0.00022465,2]
[424755139,1781127047000,-500.0,0.00022465,2]
[424755135,1781127047000,-500.0,0.00022465,2]
[424755137,1781127047000,-179.87,0.00022465,2]
[424755132,1781127047000,-456.26,0.00022465,2]
[424755136,1781127047000,-500.0,0.00022465,2]
[424755140,1781127047000,-396.07,0.00022465,2]
[424755142,1781127047000,-537.5,0.00022465,2]
[424755141,1781127047000,-500.0,0.00022465,2]
[424755144,1781127047000,-513.67,0.00022465,2]
[424755145,1781127047000,-501.81984066,0.00022465,2]
[424755131,1781127047000,-216.0,0.00022465,2]
[424755160,1781127047000,-500.0,0.00022465,2]
[424755149,1781127047000,-500.0,0.00022465,2]
[424755148,1781127047000,-500.0,0.00022465,2]
[424755151,1781127047000,-500.0,0.00022465,2]
[424755147,1781127047000,-343.48,0.00022465,2]
[424755152,1781127047000,-500.0,0.00022465,2]
[424755153,1781127047000,-181.08,0.00022465,2]
[424755150,1781127047000,-500.0,0.00022465,2]
[424755155,1781127047000,-500.0,0.00022465,2]
[424755154,1781127047000,-500.0,0.00022465,2]
[424755157,1781127047000,-500.0,0.00022465,2]
[424755158,1781127047000,-500.0,0.00022465,2]
[424755156,1781127047000,-529.31,0.00022465,2]
[424755159,1781127047000,-3348.17,0.00022465,2]
[424755146,1781127047000,-500.0,0.00022465,2]
[424755130,1781127047000,-500.0,0.00022465,2]
[424755097,1781127047000,-434.86707842,0.00022191,2]
[424755129,1781127047000,-445.6,0.00022465,2]
[424755099,1781127047000,-196.0,0.00022192,7]
[424755100,1781127047000,-151.0,0.000222,9]
[424755101,1781127047000,-864.0,0.00022214,10]
[424755102,1781127047000,-344.1509,0.000224,2]
[424755104,1781127047000,-239.880306,0.00022442,14]
[424755106,1781127047000,-205.273225,0.00022442,14]
[424755103,1781127047000,-364.35,0.000224,2]
[424755105,1781127047000,-160.0,0.00022442,14]